Cogmind - Beta 11.1 *** ADVENTURER MODE // 2022.12.15 @ 09:03:14 Player: art-hropod Result: Self-destructed Performance ------------- Evolutions (3) 1500 Regions Visited (4) 800 Robots Destroyed (55) 275 Value Destroyed (1512) 1512 Prototype IDs (2) 40 Alien Tech Used (0) 0 Bonus (0) 0 TOTAL SCORE: 4127 Bonus ------- None Cogmind --------- Core Integrity 564/700 Matter 228/300 Energy 77/100 System Corruption 0% Temperature Cool (0) Movement Flying (34) Location -7/Factory Parts ------- > --- POWER (2) -------- (None) > --- PROPULSION (5) --- VTOL Module Improved Flight Unit Improved VTOL Module > --- UTILITY (4) ------ Improved Heat Sink Small Storage Unit Improved Signal Interpreter System Shield > --- WEAPON (2) ------- Minigun > --- INVENTORY (8) ---- Advanced Visual Processing Unit Terrain Scan Processor Particle Gun Gatling Laser Particle Cannon Peak State ------------ > --- POWER ------------ Light Nuclear Core > --- PROPULSION ------- Flight Unit Flight Unit Improved Flight Unit Improved Flight Unit Improved VTOL Module > --- UTILITY ---------- Improved Heat Sink Small Storage Unit Signal Interpreter System Shield > --- WEAPON ----------- Particle Gun Heavy Assault Rifle > --- INVENTORY -------- Advanced Visual Processing Unit Terrain Scan Processor Gatling Laser Minigun [Rating: 28] Favorites ----------- Power Light Ion Engine Engine Light Ion Engine Power Core Light Nuclear Core Propulsion Aluminum Leg Leg Aluminum Leg Flight Unit Improved Flight Unit Utility Small Storage Unit Device Improved Heat Sink Storage Small Storage Unit Processor Signal Interpreter Hackware System Shield Protection Medium Armor Plating Weapon Light Assault Rifle Energy Gun Particle Gun Ballistic Gun Light Assault Rifle Build | -11 -10 -9 -8 -7 ------- Run | Scr Mat Mat Mat Fac Slots Evolved 6 | . . 2 2 2 Power 1 | . . . . 1 Propulsion 3 | . . 2 1 . Utility 2 | . . . 1 1 Weapon . | . . . . . Parts Attached 57 | 6 13 9 20 9 Power 8 | 1 2 2 3 . Engine 4 | 1 2 1 . . Core 4 | . . 1 3 . Reactor . | . . . . . Propulsion 29 | 2 5 5 11 6 Treads . | . . . . . Leg 20 | 2 5 4 9 . Wheel . | . . . . . Hover . | . . . . . Flight 9 | . . 1 2 6 Utility 6 | 1 2 . 1 2 Device 1 | . . . 1 . Storage 1 | 1 . . . . Processor 2 | . 1 . . 1 Hackware 1 | . . . . 1 Protection 1 | . 1 . . . Artifact . | . . . . . Weapon 14 | 2 4 2 5 1 Energy Gun 8 | 1 3 . 4 . Energy Cannon . | . . . . . Ballistic Gun 6 | 1 1 2 1 1 Ballistic Cannon . | . . . . . Launcher . | . . . . . Special Weapon . | . . . . . Impact Weapon . | . . . . . Slashing Weapon . | . . . . . Piercing Weapon . | . . . . . Special Melee Weapon . | . . . . . Unidentified Prototypes 2 | . . 1 1 . Parts Lost 21 | . 3 2 11 5 Power 3 | . . 1 1 1 Propulsion 11 | . 1 . 7 3 Utility . | . . . . . Weapon 7 | . 2 1 3 1 Highest Loss Streak 7 | . 1 1 7 3 To Critical Strikes . | . . . . . Average Slot Usage (%) 90 | . 89 93 91 80 Engine 6 | . 13 3 6 . Core 3 | . . 7 2 3 Leg 32 | . 25 39 41 . Flight 3 | . . . . 32 Device 2 | . . . 5 7 Storage 10 | . 14 11 9 7 Processor 8 | . 7 11 9 7 Energy Gun 8 | . 14 5 7 5 Ballistic Gun 11 | . 10 15 9 6 Naked Turns . | . . . . . Heaviest Build 19 | 11 18 14 19 17 Greatest Support 62 | 20 20 40 62 23 Greatest Overweight (x) 4 | . 4 . 1 . Average Overweight (x) . | . . . . . Largest Inventory Capacity 8 | 8 8 8 8 8 Average Capacity 7 | 7 8 8 8 8 Most Carried 8 | 2 8 8 8 8 Average Carried 6 | 1 7 7 7 3 Final Capacity 8 | 8 8 8 8 8 Final Carried 8 | 2 8 8 8 5 Class Distribution -------------------- 64% | Scavenger-Mutant 25% | Mutant 6% | Scavenger-Sprinter Dominant Class ---------------- Mutant | -10/Materials Scavenger-Mutant | -9/Materials Scavenger-Mutant | -8/Materials Scavenger-Sprinter | -7/Factory Resources | -11 -10 -9 -8 -7 ----------- Run | Scr Mat Mat Mat Fac Matter Collected 895 | 195 208 159 262 71 Remotely . | . . . . . Salvage Created 1992 | . 446 557 900 89 Parts 120 | . 27 37 51 5 Haulers Intercepted 5 | . 2 1 1 1 Recyclers Shooed 3 | . . 1 2 . Parts Field Recycled . | . . . . . Retrieved Matter . | . . . . . Parts Self-Destructed . | . . . . . Prevented . | . . . . . Kills | -11 -10 -9 -8 -7 ------- Run | Scr Mat Mat Mat Fac Combat Hostiles Destroyed 37 | . 8 13 15 1 Guns 32 | . 8 12 11 1 AOE 5 | . . 1 4 . Classes Destroyed 12 | . 5 3 4 . Worker 4 | . 2 . 2 . Builder 1 | . . . 1 . Tunneler 1 | . . . 1 . Hauler 5 | . 2 1 1 1 Recycler 1 | . . . 1 . Operator 1 | . . 1 . . Watcher 5 | . 3 . 1 1 Swarmer 9 | . 5 3 . 1 Grunt 22 | . 3 7 12 . Duelist 1 | . . 1 . . Sentry 3 | . . 2 1 . Hunter 2 | . . . 2 . Best Kill Streak 10 | . 5 4 10 1 Combat Bots Only 7 | . 3 4 7 1 Max Kills in Single Turn 5 | . 1 1 5 1 Gunslinging . | . . . . . Exploded 4 | . . 1 4 . Melee . | . . . . . Uniques/NPCs Destroyed . | . . . . . Combat | -11 -10 -9 -8 -7 -------- Run | Scr Mat Mat Mat Fac Damage Taken 2704 | . 394 594 1105 611 Core 541 | . 68 161 176 136 Absorbed by Shields . | . . . . . Core Remaining (%) 74 | 100 72 59 68 . Volleys Fired 171 | . 36 54 59 22 Largest 2 | . 2 2 2 2 Hottest 115 | . 90 60 115 88 Shots Fired 301 | . 63 96 107 35 Gun 301 | . 63 96 107 35 Cannon . | . . . . . Launcher . | . . . . . Special . | . . . . . Kinetic 178 | . 23 71 62 22 Thermal 49 | . . . 36 13 Explosive . | . . . . . Electromagnetic 74 | . 40 25 9 . Robot Hit Streak 34 | . 8 27 34 19 Robot Miss Streak 6 | . 6 2 1 3 Penetration Max . | . . . . . Secondary Targets 7 | . 2 2 2 1 Max Gunslinging Chain 1 | . 1 1 1 1 Shots Hit Robots 242 | . 42 78 94 28 Core Hits 104 | . 19 33 45 7 Critical Kills 1 | . . . 1 . Critical Parts Destroyed 1 | . . . 1 . Critical Strikes 2 | . . . 2 . Destroy 2 | . . . 2 . Melee Attacks . | . . . . . Impact . | . . . . . Slashing . | . . . . . Piercing . | . . . . . Sneak Attacks . | . . . . . Combat Hostiles . | . . . . . Follow-up Attacks . | . . . . . Damage Inflicted 3390 | . 576 802 1570 442 Guns 2872 | . 532 698 1200 442 Cannons . | . . . . . Explosions 518 | . 44 104 370 . Melee . | . . . . . Ramming . | . . . . . Kinetic 1304 | . 93 456 516 239 Thermal 992 | . 44 104 641 203 Explosive 231 | . . . 231 . Electromagnetic 863 | . 439 242 182 . Impact . | . . . . . Slashing . | . . . . . Piercing . | . . . . . Highest Corruption 3 | . . 3 . . Average Corruption 3 | . . 3 . . Corruption Purged . | . . . . . Corruption Blocked . | . . . . . Effects 8 | . . 8 . . Message Errors 3 | . . 3 . . Matter Fused 1 | . . 1 . . Heat Flow Errors 2 | . . 2 . . Data Loss (major) 1 | . . 1 . . Misfires 1 | . . 1 . . Overload Shots . | . . . . . Overflow Damage 82 | . . . 82 . Projectiles . | . . . . . Explosions 82 | . . . 82 . Melee . | . . . . . Knockbacks . | . . . . . Impact . | . . . . . Kinetic . | . . . . . Secondary . | . . . . . Self-Inflicted Damage 116 | . 4 . 112 . Shots 3 | . 1 . 2 . Rammed . | . . . . . Targets Rammed . | . . . . . Kicked . | . . . . . Crushed . | . . . . . Highest Temperature 254 | . 144 254 21 10 Average Temperature 41 | . 38 59 6 4 Received Heat Transfer 1182 | . 171 300 639 72 Siege Activations . | . . . . . Robots Corrupted . | . . . . . Combat Hostiles . | . . . . . Parts Fried 3 | . . . 3 . Impact Corruptions . | . . . . . Robots Melted . | . . . . . Combat Hostiles . | . . . . . Parts Melted 1 | . . . . 1 Heat Transferred 2115 | . 50 150 1434 481 Parts Sabotaged . | . . . . . Parts Stolen . | . . . . . Parts Stripped . | . . . . . Power Chain Reactions 4 | . 1 2 1 . Missiles Intercepted . | . . . . . Alert | -11 -10 -9 -8 -7 ------- Run | Scr Mat Mat Mat Fac Peak Influence 424 | . 271 424 274 225 Initial 106 | . . 31 93 106 Average 157 | . 105 243 156 154 Maximum Alert Level 2 | . 1 2 1 1 Low Security (%) 70 | 100 84 33 85 63 Level 1 28 | . 15 64 14 36 Level 2 . | . . 2 . . Level 3 . | . . . . . Level 4 . | . . . . . Level 5 . | . . . . . High Security . | . . . . . Max Security . | . . . . . Squads Dispatched 7 | . . 2 3 2 Investigation 4 | . . . 3 1 Extermination . | . . . . . Reinforcement 3 | . . 2 . 1 Assault . | . . . . . Garrison . | . . . . . Intercept . | . . . . . Searches Triggered . | . . . . . Construction Impeded 1 | . . 1 . . Haulers Reinforced . | . . . . . Active Scanning Responses . | . . . . . Cargo Convoy Interrupts . | . . . . . Stealth | -11 -10 -9 -8 -7 --------- Run | Scr Mat Mat Mat Fac Distress Signals 4 | . 1 3 . . Communications Jammed . | . . . . . Distress Signals . | . . . . . Times Spotted 68 | . 14 22 19 13 Peak Tracking Total 9 | . 5 4 9 5 Tactical Retreats 6 | . 1 2 . 3 Traps | -11 -10 -9 -8 -7 ------- Run | Scr Mat Mat Mat Fac Traps Triggered 10 | . 4 3 1 2 Indirectly . | . . . . . Trap Hack Attempts . | . . . . . Triggered . | . . . . . Disarmed . | . . . . . Reprogrammed . | . . . . . Reused . | . . . . . Traps Extracted . | . . . . . Installed . | . . . . . Triggered . | . . . . . Machines | -11 -10 -9 -8 -7 ---------- Run | Scr Mat Mat Mat Fac Machines Disabled 5 | . 3 1 1 . Max in Single Turn 1 | . 1 1 1 . Machines Sabotaged . | . . . . . Garrisons Compromised . | . . . . . Overloaded Fab Kills . | . . . . . Hacking | -11 -10 -9 -8 -7 --------- Run | Scr Mat Mat Mat Fac Machines Accessed 13 | . 3 5 3 2 Terminals 13 | . 3 5 3 2 Fabricators . | . . . . . Repair Stations . | . . . . . Recycling Units . | . . . . . Scanalyzers . | . . . . . Garrison Access . | . . . . . Total Hacks 27 | . 6 8 8 5 Successful 12 | . 2 7 2 1 Failed 15 | . 4 1 6 4 Catastrophic 1 | . . . 1 . Database Lockouts . | . . . . . Manual 27 | . 6 8 8 5 Terminals 27 | . 6 8 8 5 Fabricators . | . . . . . Repair Stations . | . . . . . Recycling Units . | . . . . . Scanalyzers . | . . . . . Garrison Access . | . . . . . Terminal Hacks 4 | . 2 1 1 . Transport Status 3 | . 2 1 . . Recall Investigation 1 | . . . 1 . Fabricator Hacks . | . . . . . Repair Station Hacks . | . . . . . Recycling Unit Hacks . | . . . . . Scanalyzer . | . . . . . Garrison Access Hacks . | . . . . . Unauthorized Hacks 8 | . . 6 1 1 Terminals 8 | . . 6 1 1 Assimilate 1 | . . 1 . . Botnet 4 | . . 4 . . Operators 3 | . . 1 1 1 Fabricators . | . . . . . Repair Stations . | . . . . . Recycling Units . | . . . . . Scanalyzers . | . . . . . Garrison Access . | . . . . . Data Cores Recovered . | . . . . . Used . | . . . . . Hacking Detections 8 | . 1 3 2 2 Full Trace Events 2 | . . . 2 . Feedback Events . | . . . . . Feedback Blocked . | . . . . . Robot Schematics Acquired . | . . . . . Robots Built . | . . . . . Authchips . | . . . . . Time . | . . . . . Total Robot Build Rating . | . . . . . Part Schematics Acquired . | . . . . . Parts Built . | . . . . . Authchips . | . . . . . Time . | . . . . . Total Part Build Rating . | . . . . . Parts Repaired . | . . . . . Time . | . . . . . Parts Recycled . | . . . . . Recycled Matter . | . . . . . Retrieved Matter . | . . . . . Retrieved Components . | . . . . . Parts Scanalyzed . | . . . . . Part Schematics Acquired . | . . . . . Parts Damaged . | . . . . . Bothacking | -11 -10 -9 -8 -7 ------------ Run | Scr Mat Mat Mat Fac Used RIF Installer . | . . . . . Robots Hacked . | . . . . . Non-combat . | . . . . . Combat . | . . . . . Robot Hacks Applied . | . . . . . Relay Couplers Released . | . . . . . Fabnet Peak Effective % . | . . . . . Robots Rewired . | . . . . . Allies Hacked . | . . . . . Hacks Repelled . | . . . . . Allies | -11 -10 -9 -8 -7 -------- Run | Scr Mat Mat Mat Fac Total Allies 1 | . . 1 . . Largest Group 1 | . . 1 . . Highest-Rated Group 10 | . . 10 . . Highest-Rated Ally 10 | . . 10 . . Total Orders . | . . . . . Ally Attacks . | . . . . . Total Damage . | . . . . . Kills . | . . . . . Allies Corrupted . | . . . . . Allies Melted . | . . . . . Intel | -11 -10 -9 -8 -7 ------- Run | Scr Mat Mat Mat Fac Robot Analysis Total . | . . . . . Derelict Logs Recovered . | . . . . . Drone Launches . | . . . . . Drone Recoveries . | . . . . . Exploration | -11 -10 -9 -8 -7 ------------- Run | Scr Mat Mat Mat Fac Turns Passed 1805 | 76 475 447 622 185 Spaces Moved 1209 | 55 277 226 340 311 Core 12 | 5 7 . . . Treads . | . . . . . Legs 886 | 50 270 226 340 . Wheels . | . . . . . Hover . | . . . . . Flight 311 | . . . . 311 Fastest Speed 27 | 50 100 120 120 27 Average Speed 98 | 113 127 120 122 28 Slowest Speed 250 | 120 250 120 200 34 Overloaded Moves . | . . . . . Propulsion Burnouts . | . . . . . Robots Hopped 1 | . . . . 1 Cave-ins Triggered . | . . . . . Exploration Rate (%) 25 | 3 53 32 30 11 Regions Visited 4 Branch Regions . Pre-discovered Areas . | . . . . . Known Exits Taken 3 | . 1 1 1 . Unknown Exits Taken 1 | 1 . . . . Scrap Searched . | . . . . . Spaces Dug . | . . . . . Terrain Destroyed 21 | . . 4 17 . Melee . | . . . . . Projectile . | . . . . . AOE 21 | . . 4 17 . Terrain Rammed . | . . . . . Walls Destroyed . | . . . . . Machines Disabled . | . . . . . Actions | -11 -10 -9 -8 -7 --------- Run | Scr Mat Mat Mat Fac Total 1549 | 68 338 323 445 375 Wait 33 | . . 18 7 8 Move 1203 | 54 276 225 339 309 Hop 1 | . . . . 1 Pick Up 42 | 8 11 7 11 5 Fast Attach 22 | . 6 5 11 . Attach 26 | 6 5 1 6 8 Detach 1 | . . . . 1 Swap 9 | . 2 3 3 1 Drop 26 | . 2 10 9 5 Fire 171 | . 36 54 59 22 Melee . | . . . . . Ram . | . . . . . Kick . | . . . . . Crush . | . . . . . Escape Stasis 15 | . . . . 15 Rewire . | . . . . . Trap . | . . . . . Miscellaneous . | . . . . . Route ------- -11/Scrapyard -10/Materials (discovered 2 exits: *Mat x2) -9/Materials -8/Materials -7/Factory History --------- Turn | Location | Event 3 | -11/Scrapyard | Discovered new exit (range 14) 77 | -11/Scrapyard | Entered Materials 161 | -10/Materials | Discovered new exit (range 8) 327 | -10/Materials | Build established: Mutant 521 | -10/Materials | Discovered new exit (range 16) 551 | -10/Materials | Identified exit to Materials 552 | -10/Materials | Entered another Materials area 552 | -9/Materials | Evolved 2 slots: Propulsion x2 779 | -9/Materials | Build established: Scavenger-Mutant 988 | -9/Materials | Discovered new exit (range 9) 997 | -9/Materials | Identified exit to Materials 999 | -9/Materials | Entered another Materials area 999 | -8/Materials | Evolved 2 slots: Propulsion x1, Utility x1 1441 | -8/Materials | Destroyed 7 combat bots 1490 | -8/Materials | Lost 7 parts (1p3n3w) 1602 | -8/Materials | Discovered new exit (range 16) 1619 | -8/Materials | Identified exit to Factory 1621 | -8/Materials | Entered Factory 1621 | -7/Factory | Evolved 2 slots: Power x1, Utility x1 1754 | -7/Factory | Lost 3 parts (1p2n) 1806 | -7/Factory | Self-destructed Last Messages --------------- 01755_ W-25 Informer destroyed. 01755_ Switching to secondary target: Y-54 Guardian. 01756_ K-01 Serf collects debris. 01759_ Acquired 27 matter. 01759_ Acquired Imp. Signal Interpreter. 01760_ K-01 Serf collects debris. 01760_ Discarded Signal Interpreter. 01761_ Hvy. Assault Rifle destroyed. 01762_ K-01 Serf collects debris. 01764_ Imp. Flight Unit destroyed. 01766_ K-01 Serf collects debris. 01773_ O-16 Technician: "IFF HANDSHAKE FAILED. SECURING TERMINAL." 01780_ O-16 Technician uses terminal to summon reinforcements. 01780_ ALERT: Hostiles spotted, dispatching reinforcements to Terminal F015. 01780_ O-16 Technician locks terminal. 01787_ Destroyed Hover Unit. 01805_ Acquired Particle Cannon. Map ----- +----------------------------------------------------+ | ??????????????????????????????? | | ??????????????????????????????? | | ??????????????????????????????? | | ??????????????????????????????? | | ??????????????????????????????? | | ??????????????????????????????? | | ??????????????????????????????? | | ??????????????????????????????? | | ???????????????+??????????????? | | ??? ????????? ??????????????? | | ??? ? ????# ??????????????? | | ??? ##### ??????????????? | | ??# = #?????????????? | | ??# #??############ | | ?? ?? #??# # | | ??T ?? #??# ! # | | ### """" """" #??# # | | """" """" #### """" # | | """" """" # """" # | | # """" # | | o"""" """" # """" # | | """" """" s """" # | | """" """" # """" # | | # """" # | | # # | | ######+####### # @ # | | # # # # | | # " # # | | # """ """ ! ##### # # | | # """ """ #???# ############ | | # """ """ #?### ###????????? | | # "" "" #?#/ #????????? | | # "" "" ### #????????? | | # / T +????????? | | # ! ### #????????? | | # #?# #????????? | | #* #?###+###????????? | | # #????????????????? | | ##############????????????????? | | #??????????????????????? | | #??????????????????????? | | #??????????????????????? | | % #??????????????????????? | | +#######??????????????????????? | | #???????????????????????????? | | #???????????????????????????? | | #???????????????????????????? | | #???????????????????????????? | | #???????????????????????????? | | ??????????????????????????? | +----------------------------------------------------+ Best States ------------- Heat Dissipation 48 Energy Generation 14 Energy Capacity 265 Matter Stores 300 Matter Capacity 300 Sight Range 16 Terrain Scan Density 10 Armor Coverage 225 Resistance: KI 20 Resistance: TH 20 Resistance: EX 20 Resistance: EM 20 Resistance: I 20 Resistance: S 20 Resistance: P 20 Evasion (%) 64 Offensive Hacking 10 Defensive Hacking 10 Item Schematics ----------------- None Robot Schematics ------------------ None Fabricated ------------ Nothing Alien Tech Used ----------------- None Achievements -------------- None Challenges ------------ None Game ------ Seed SingularityOmegaWand Manual? 0 Play Time 00:32:09 Cumulative 22.8 hours Start 2022.12.10 @ 22:36:11 End 2022.12.15 @ 09:03:14 Sessions 3 Manual Loads 0 Difficulty Adventurer Special Mode None Game No. 31 Rogue 25 Adventurer 1 Explorer 5 Win Type - Total 1 Types 1/0/0/0/0/0/0/0/0 Lore% 13 Gallery% 28 Achievement% 22 Wizard Run 0 Options --------- ASCII 0 Keyboard 0 Movement Mouse Keybinds 0 Fullscreen 1 Font 32/SmallcapsGlow Map View 63x52 Tactical HUD 1 Map Filters NONE Filters NONE Steam X RUN: 4591d3f6-c79f-4b33-a6fa-5b1340a34dcf